[Event "*** SCC Grand Prix: Titled Tuesday Blitz"]
[Site "Chess.com"]
[Date "2020.07.14"]
[Round "8"]
[White "keepitcool9499"]
[Black "Nafania1"]
[Result "1-0"]
[WhiteElo "2562"]
[BlackElo "2438"]
[TimeControl "180+1"]
[EndTime "11:36:46 PDT"]
[Termination "keepitcool9499 won by resignation"]

1. d4 {[%clk 0:03:00.9]} 1... Nf6 {[%clk 0:02:59.5]} 2. c4 {[%clk 0:03:01.5]}
2... e6 {[%clk 0:02:59.5]} 3. Nc3 {[%clk 0:02:59]} 3... Bb4 {[%clk 0:02:59.5]}
4. Bd2 {[%clk 0:02:59.5]} 4... d5 {[%clk 0:02:58]} 5. e3 {[%clk 0:02:55.2]} 5...
O-O {[%clk 0:02:56.6]} 6. Nf3 {[%clk 0:02:53.2]} 6... b6 {[%clk 0:02:50.5]} 7.
Qc2 {[%clk 0:02:52.5]} 7... Bb7 {[%clk 0:02:49.7]} 8. a3 {[%clk 0:02:50.3]} 8...
Bxc3 {[%clk 0:02:47.2]} 9. Bxc3 {[%clk 0:02:51.2]} 9... Nbd7 {[%clk 0:02:46.9]}
10. Bd3 {[%clk 0:02:48.8]} 10... Rc8 {[%clk 0:02:46.5]} 11. cxd5 {[%clk
0:02:46.6]} 11... exd5 {[%clk 0:02:44.4]} 12. O-O {[%clk 0:02:40.7]} 12... Ne4
{[%clk 0:02:41.1]} 13. Nd2 {[%clk 0:02:37]} 13... Nxc3 {[%clk 0:02:35.8]} 14.
Qxc3 {[%clk 0:02:32.6]} 14... c5 {[%clk 0:02:33.2]} 15. Bf5 {[%clk 0:02:30]}
15... g6 {[%clk 0:02:25]} 16. Bxd7 {[%clk 0:02:24.1]} 16... Qxd7 {[%clk
0:02:25]} 17. Rac1 {[%clk 0:02:15.6]} 17... Rfe8 {[%clk 0:02:08.2]} 18. Nf3
{[%clk 0:02:07.4]} 18... c4 {[%clk 0:02:05.2]} 19. Rfe1 {[%clk 0:01:58.7]} 19...
f6 {[%clk 0:01:59.4]} 20. Nd2 {[%clk 0:01:55.3]} 20... b5 {[%clk 0:01:55.8]} 21.
Qa5 {[%clk 0:01:49.1]} 21... a6 {[%clk 0:01:54.5]} 22. Nf1 {[%clk 0:01:39.6]}
22... Re6 {[%clk 0:01:48.4]} 23. Ng3 {[%clk 0:01:38]} 23... Rce8 {[%clk
0:01:47.5]} 24. Ne2 {[%clk 0:01:35.8]} 24... g5 {[%clk 0:01:45.4]} 25. Ng3
{[%clk 0:01:33.7]} 25... R6e7 {[%clk 0:01:40.7]} 26. h3 {[%clk 0:01:30.2]} 26...
f5 {[%clk 0:01:31.6]} 27. Qd2 {[%clk 0:01:16.7]} 27... h6 {[%clk 0:01:25.9]} 28.
Nh5 {[%clk 0:01:11.2]} 28... Qe6 {[%clk 0:01:19.5]} 29. Ng3 {[%clk 0:01:05.2]}
29... Qg6 {[%clk 0:01:18.7]} 30. a4 {[%clk 0:00:55.5]} 30... Kg7 {[%clk
0:01:16.2]} 31. axb5 {[%clk 0:00:53.7]} 31... axb5 {[%clk 0:01:16.7]} 32. Ra1
{[%clk 0:00:52]} 32... Qf7 {[%clk 0:01:09.5]} 33. Qb4 {[%clk 0:00:49.3]} 33...
Bc6 {[%clk 0:01:09]} 34. Ra6 {[%clk 0:00:46.1]} 34... Bd7 {[%clk 0:01:01]} 35.
Rea1 {[%clk 0:00:42.3]} 35... f4 {[%clk 0:01:00.3]} 36. Nf1 {[%clk 0:00:39.7]}
36... f3 {[%clk 0:00:59]} 37. g4 {[%clk 0:00:27.5]} 37... h5 {[%clk 0:00:58.2]}
38. Nh2 {[%clk 0:00:24.9]} 38... hxg4 {[%clk 0:00:55.8]} 39. hxg4 {[%clk
0:00:24.8]} 39... Re6 {[%clk 0:00:53]} 40. Ra7 {[%clk 0:00:22]} 40... Rh6 {[%clk
0:00:52.8]} 41. Qc5 {[%clk 0:00:11.8]} 41... Reh8 {[%clk 0:00:52.7]} 42. Rxd7
{[%clk 0:00:09.1]} 42... Qxd7 {[%clk 0:00:51.9]} 43. Ra7 {[%clk 0:00:09.6]}
43... Qxa7 {[%clk 0:00:50.7]} 44. Qxa7+ {[%clk 0:00:10.5]} 44... Kg6 {[%clk
0:00:50]} 45. Qb6+ {[%clk 0:00:05.3]} 45... Kg7 {[%clk 0:00:50.2]} 46. Nxf3
{[%clk 0:00:04.9]} 46... Rh3 {[%clk 0:00:49.6]} 47. Kg2 {[%clk 0:00:04.8]} 47...
Rh1 {[%clk 0:00:49.1]} 48. Qxb5 {[%clk 0:00:04.7]} 48... Rb1 {[%clk 0:00:47.9]}
49. Qxd5 {[%clk 0:00:05]} 49... Rf8 {[%clk 0:00:47.3]} 50. Qxc4 {[%clk
0:00:04.5]} 50... Rxb2 {[%clk 0:00:46.3]} 51. Qc7+ {[%clk 0:00:04.9]} 51... Rf7
{[%clk 0:00:46.2]} 52. Qe5+ {[%clk 0:00:05.2]} 52... Kf8 {[%clk 0:00:46.6]} 53.
Qxg5 {[%clk 0:00:05.7]} 53... Rb6 {[%clk 0:00:44.6]} 54. Qc5+ {[%clk 0:00:05.8]}
54... Kg7 {[%clk 0:00:43.7]} 55. Qxb6 {[%clk 0:00:06.1]} 55... Rf6 {[%clk
0:00:43.7]} 56. Qxf6+ {[%clk 0:00:06]} 56... Kxf6 {[%clk 0:00:44]} 57. Kg3
{[%clk 0:00:06.7]} 57... Kg6 {[%clk 0:00:44.3]} 58. Kf4 {[%clk 0:00:07.6]} 58...
Kf6 {[%clk 0:00:44.7]} 59. e4 {[%clk 0:00:08.5]} 59... Kf7 {[%clk 0:00:44.9]}
60. Ng1 {[%clk 0:00:09.4]} 60... Kf6 {[%clk 0:00:45.2]} 61. f3 {[%clk
0:00:10.3]} 61... Ke6 {[%clk 0:00:45.4]} 62. g5 {[%clk 0:00:11.2]} 62... Kf7
{[%clk 0:00:45.5]} 63. Kg4 {[%clk 0:00:12.1]} 63... Kg6 {[%clk 0:00:45.8]} 64.
f4 {[%clk 0:00:13]} 1-0

[Event "*** SCC Grand Prix: Titled Tuesday Blitz"]
[Site "Chess.com"]
[Date "2020.07.14"]
[Round "8"]
[White "ikhasu"]
[Black "Kaua18"]
[Result "1-0"]
[WhiteElo "2417"]
[BlackElo "2280"]
[TimeControl "180+1"]
[EndTime "11:36:47 PDT"]
[Termination "ikhasu won by checkmate"]

1. d4 {[%clk 0:03:00.9]} 1... Nf6 {[%clk 0:02:59.8]} 2. Bf4 {[%clk 0:03:00]}
2... b6 {[%clk 0:02:54.7]} 3. e3 {[%clk 0:02:59.1]} 3... Bb7 {[%clk 0:02:54.4]}
4. Nd2 {[%clk 0:02:58.6]} 4... e6 {[%clk 0:02:54.6]} 5. Ngf3 {[%clk 0:02:55.5]}
5... Be7 {[%clk 0:02:53.3]} 6. h3 {[%clk 0:02:55.1]} 6... c5 {[%clk 0:02:53.2]}
7. c3 {[%clk 0:02:37.8]} 7... O-O {[%clk 0:02:52.2]} 8. Be2 {[%clk 0:02:37.7]}
8... d6 {[%clk 0:02:50.7]} 9. O-O {[%clk 0:02:37.5]} 9... Nbd7 {[%clk
0:02:49.2]} 10. a4 {[%clk 0:02:34.9]} 10... a6 {[%clk 0:02:48.6]} 11. Bh2 {[%clk
0:02:31.6]} 11... cxd4 {[%clk 0:02:47]} 12. exd4 {[%clk 0:02:31.1]} 12... Qc7
{[%clk 0:02:44.1]} 13. Bd3 {[%clk 0:02:30]} 13... Rfe8 {[%clk 0:02:41.4]} 14.
Re1 {[%clk 0:02:29.4]} 14... Bf8 {[%clk 0:02:40.4]} 15. Qc2 {[%clk 0:02:25.1]}
15... h6 {[%clk 0:02:39.8]} 16. Bg3 {[%clk 0:02:13.6]} 16... Rac8 {[%clk
0:02:37.9]} 17. Nh2 {[%clk 0:02:04.4]} 17... Qb8 {[%clk 0:02:36.1]} 18. Ng4
{[%clk 0:01:55.4]} 18... Qa8 {[%clk 0:02:28.8]} 19. f3 {[%clk 0:01:54]} 19...
Bc6 {[%clk 0:02:04.8]} 20. Nxf6+ {[%clk 0:01:52.7]} 20... Nxf6 {[%clk
0:02:04.6]} 21. Nc4 {[%clk 0:01:51.5]} 21... Qb8 {[%clk 0:01:59.1]} 22. a5
{[%clk 0:01:50.8]} 22... b5 {[%clk 0:01:55.8]} 23. Nb6 {[%clk 0:01:50.7]} 23...
Rcd8 {[%clk 0:01:47.4]} 24. b3 {[%clk 0:01:47.9]} 24... Nd5 {[%clk 0:01:26.1]}
25. Nxd5 {[%clk 0:01:45.8]} 25... Bxd5 {[%clk 0:01:25.3]} 26. c4 {[%clk
0:01:44.1]} 26... Rc8 {[%clk 0:01:20.1]} 27. Qe2 {[%clk 0:01:41.6]} 27... Bc6
{[%clk 0:01:08.6]} 28. Rec1 {[%clk 0:01:32.4]} 28... Qa7 {[%clk 0:01:07.6]} 29.
Bf2 {[%clk 0:01:31.2]} 29... Qb7 {[%clk 0:00:53.1]} 30. Ra2 {[%clk 0:01:23.1]}
30... d5 {[%clk 0:00:38.4]} 31. c5 {[%clk 0:00:57.8]} 31... Qc7 {[%clk
0:00:38.2]} 32. b4 {[%clk 0:00:51.6]} 32... Be7 {[%clk 0:00:34.2]} 33. Bb1
{[%clk 0:00:50.1]} 33... Bg5 {[%clk 0:00:31.7]} 34. Re1 {[%clk 0:00:48.4]} 34...
Bf4 {[%clk 0:00:30.7]} 35. Qd3 {[%clk 0:00:42.9]} 35... g6 {[%clk 0:00:30]} 36.
Rae2 {[%clk 0:00:41.8]} 36... Bd7 {[%clk 0:00:20.1]} 37. Bh4 {[%clk 0:00:35.8]}
37... Kg7 {[%clk 0:00:19.2]} 38. Bf2 {[%clk 0:00:27]} 38... Bh2+ {[%clk
0:00:18.2]} 39. Kh1 {[%clk 0:00:26.3]} 39... Bg3 {[%clk 0:00:18.4]} 40. Bxg3
{[%clk 0:00:25.2]} 40... Qxg3 {[%clk 0:00:19.3]} 41. Re5 {[%clk 0:00:23.3]}
41... f6 {[%clk 0:00:16.5]} 42. R5e3 {[%clk 0:00:21.2]} 42... Rcd8 {[%clk
0:00:16.5]} 43. f4 {[%clk 0:00:20.1]} 43... Qxf4 {[%clk 0:00:11.2]} 44. Qxg6+
{[%clk 0:00:19.5]} 44... Kf8 {[%clk 0:00:11.6]} 45. Rf3 {[%clk 0:00:19.4]} 45...
Qxf3 {[%clk 0:00:02.5]} 46. gxf3 {[%clk 0:00:18.4]} 46... Ke7 {[%clk 0:00:02.3]}
47. Qg7# {[%clk 0:00:16.9]} 1-0

[Event "*** SCC Grand Prix: Titled Tuesday Blitz"]
[Site "Chess.com"]
[Date "2020.07.14"]
[Round "8"]
[White "tigra"]
[Black "Indianlad"]
[Result "1/2-1/2"]
[WhiteElo "2845"]
[BlackElo "2946"]
[TimeControl "180+1"]
[EndTime "11:36:49 PDT"]
[Termination "Game drawn by repetition"]

1. e4 {[%clk 0:03:00.9]} 1... e5 {[%clk 0:03:00.2]} 2. Nf3 {[%clk 0:03:00.3]}
2... Nc6 {[%clk 0:03:00.8]} 3. Bc4 {[%clk 0:03:00.5]} 3... Bc5 {[%clk
0:03:00.9]} 4. c3 {[%clk 0:03:01.2]} 4... Nf6 {[%clk 0:03:01.1]} 5. d3 {[%clk
0:03:01.9]} 5... d6 {[%clk 0:02:56.2]} 6. Nbd2 {[%clk 0:03:00.9]} 6... a5 {[%clk
0:02:43.5]} 7. h3 {[%clk 0:02:57.9]} 7... O-O {[%clk 0:02:40]} 8. O-O {[%clk
0:02:53.9]} 8... a4 {[%clk 0:02:38.9]} 9. Bb5 {[%clk 0:02:53.2]} 9... Bd7 {[%clk
0:02:39.1]} 10. Bxa4 {[%clk 0:02:47.3]} 10... Rxa4 {[%clk 0:02:39.1]} 11. Qxa4
{[%clk 0:02:46.9]} 11... Nb4 {[%clk 0:02:39.8]} 12. Qd1 {[%clk 0:02:38.1]} 12...
Nxd3 {[%clk 0:02:40.1]} 13. Nb3 {[%clk 0:02:25.8]} 13... Nxf2 {[%clk 0:02:13.8]}
14. Rxf2 {[%clk 0:02:26.7]} 14... Bxf2+ {[%clk 0:02:14.1]} 15. Kxf2 {[%clk
0:02:26.8]} 15... Nxe4+ {[%clk 0:02:14.7]} 16. Kg1 {[%clk 0:02:25.9]} 16... Be6
{[%clk 0:02:08.9]} 17. Nbd2 {[%clk 0:02:17.3]} 17... Nxd2 {[%clk 0:02:02.6]} 18.
Qxd2 {[%clk 0:02:11.4]} 18... h6 {[%clk 0:02:03.3]} 19. b3 {[%clk 0:02:10.5]}
19... f5 {[%clk 0:02:02.5]} 20. c4 {[%clk 0:02:09.8]} 20... b6 {[%clk
0:01:52.2]} 21. Bb2 {[%clk 0:02:05.3]} 21... f4 {[%clk 0:01:47.3]} 22. Re1
{[%clk 0:02:03.8]} 22... Qa8 {[%clk 0:01:44.6]} 23. Qc3 {[%clk 0:01:59.6]} 23...
Rf7 {[%clk 0:01:33.5]} 24. a4 {[%clk 0:01:53.3]} 24... Bd7 {[%clk 0:01:32.8]}
25. Rf1 {[%clk 0:01:33.9]} 25... e4 {[%clk 0:01:31.3]} 26. Nh4 {[%clk
0:01:11.4]} 26... f3 {[%clk 0:01:31.8]} 27. gxf3 {[%clk 0:00:27.3]} 27... Bxh3
{[%clk 0:01:31.2]} 28. Re1 {[%clk 0:00:26.2]} 28... exf3 {[%clk 0:01:01.6]} 29.
Kf2 {[%clk 0:00:26.1]} 29... Qd8 {[%clk 0:00:58.7]} 30. Qd4 {[%clk 0:00:26.2]}
30... Qg5 {[%clk 0:00:44.7]} 31. Rg1 {[%clk 0:00:22.3]} 31... Qe7 {[%clk
0:00:40.7]} 32. Nxf3 {[%clk 0:00:19.2]} 32... Bf5 {[%clk 0:00:37.1]} 33. Re1
{[%clk 0:00:17.5]} 33... Qf8 {[%clk 0:00:35]} 34. Kg3 {[%clk 0:00:17.1]} 34...
Bd7 {[%clk 0:00:23]} 35. Nh4 {[%clk 0:00:16.7]} 35... Bc6 {[%clk 0:00:23.4]} 36.
Re6 {[%clk 0:00:12.8]} 36... Rf1 {[%clk 0:00:21.5]} 37. Rg6 {[%clk 0:00:11.1]}
37... Rf3+ {[%clk 0:00:15.3]} 38. Kh2 {[%clk 0:00:06.5]} 38... Rf2+ {[%clk
0:00:13]} 39. Kg3 {[%clk 0:00:05.5]} 39... Rf3+ {[%clk 0:00:12.3]} 40. Kh2
{[%clk 0:00:03.1]} 40... Rf2+ {[%clk 0:00:11.9]} 41. Kh3 {[%clk 0:00:03]} 41...
Rf3+ {[%clk 0:00:08.3]} 42. Kh2 {[%clk 0:00:02.5]} 1/2-1/2

[Event "*** SCC Grand Prix: Titled Tuesday Blitz"]
[Site "Chess.com"]
[Date "2020.07.14"]
[Round "8"]
[White "KingChess345"]
[Black "korkmaz16"]
[Result "0-1"]
[WhiteElo "2155"]
[BlackElo "2326"]
[TimeControl "180+1"]
[EndTime "11:36:49 PDT"]
[Termination "korkmaz16 won on time"]

1. d4 {[%clk 0:03:00.9]} 1... d5 {[%clk 0:02:58.1]} 2. Nf3 {[%clk 0:03:01.8]}
2... Nf6 {[%clk 0:02:57.5]} 3. g3 {[%clk 0:03:02.7]} 3... g6 {[%clk 0:02:56.8]}
4. Bg2 {[%clk 0:03:01.9]} 4... Bg7 {[%clk 0:02:56.8]} 5. O-O {[%clk 0:03:02.8]}
5... O-O {[%clk 0:02:56.8]} 6. c4 {[%clk 0:03:03.7]} 6... c6 {[%clk 0:02:56.8]}
7. Qb3 {[%clk 0:03:01.9]} 7... dxc4 {[%clk 0:02:49.8]} 8. Qxc4 {[%clk
0:03:00.2]} 8... Nbd7 {[%clk 0:02:50.4]} 9. Nc3 {[%clk 0:02:53.9]} 9... Nb6
{[%clk 0:02:45.3]} 10. Qd3 {[%clk 0:02:51.3]} 10... Bf5 {[%clk 0:02:43.5]} 11.
e4 {[%clk 0:02:41.2]} 11... Be6 {[%clk 0:02:43.1]} 12. b3 {[%clk 0:02:37.9]}
12... h6 {[%clk 0:02:30.9]} 13. Bb2 {[%clk 0:02:36.6]} 13... Qc7 {[%clk
0:02:23.7]} 14. Rac1 {[%clk 0:02:33.8]} 14... Rad8 {[%clk 0:02:23]} 15. Rfd1
{[%clk 0:02:29.9]} 15... Ng4 {[%clk 0:02:16]} 16. Qe2 {[%clk 0:02:21.2]} 16...
h5 {[%clk 0:02:10.9]} 17. h3 {[%clk 0:02:19.8]} 17... Nf6 {[%clk 0:02:08.7]} 18.
Ng5 {[%clk 0:02:08.3]} 18... Bc8 {[%clk 0:02:08]} 19. e5 {[%clk 0:02:03.7]}
19... Nfd5 {[%clk 0:02:07.2]} 20. Nxd5 {[%clk 0:01:44]} 20... Nxd5 {[%clk
0:02:05.5]} 21. Ba3 {[%clk 0:01:42.4]} 21... Bh6 {[%clk 0:01:56]} 22. h4 {[%clk
0:01:37]} 22... Rfe8 {[%clk 0:01:49.6]} 23. Rc5 {[%clk 0:01:04.1]} 23... Bxg5
{[%clk 0:00:58.7]} 24. hxg5 {[%clk 0:01:05]} 24... Bg4 {[%clk 0:00:54.3]} 25. f3
{[%clk 0:01:00]} 25... Be6 {[%clk 0:00:53.8]} 26. Rdc1 {[%clk 0:00:57.7]} 26...
Qd7 {[%clk 0:00:53.3]} 27. f4 {[%clk 0:00:53.4]} 27... Bg4 {[%clk 0:00:45.6]}
28. Bf3 {[%clk 0:00:52.6]} 28... Bxf3 {[%clk 0:00:43.1]} 29. Qxf3 {[%clk
0:00:52.2]} 29... Qf5 {[%clk 0:00:43.2]} 30. Rf1 {[%clk 0:00:34.8]} 30... Rd7
{[%clk 0:00:42.2]} 31. Kg2 {[%clk 0:00:31.2]} 31... Nc7 {[%clk 0:00:41.6]} 32.
Rc4 {[%clk 0:00:25]} 32... Ne6 {[%clk 0:00:40.9]} 33. Bc5 {[%clk 0:00:20.8]}
33... b6 {[%clk 0:00:40.9]} 34. Qxc6 {[%clk 0:00:18.6]} 34... Red8 {[%clk
0:00:36.8]} 35. Ba3 {[%clk 0:00:14.6]} 35... Nxd4 {[%clk 0:00:36.7]} 36. Qa4
{[%clk 0:00:10.5]} 36... Ne6 {[%clk 0:00:34]} 37. Rf2 {[%clk 0:00:09.4]} 37...
Qg4 {[%clk 0:00:34]} 38. Qc6 {[%clk 0:00:07.8]} 38... h4 {[%clk 0:00:32.8]} 39.
Qf3 {[%clk 0:00:07.6]} 39... h3+ {[%clk 0:00:29.1]} 40. Kh2 {[%clk 0:00:06.9]}
40... Qf5 {[%clk 0:00:27.6]} 41. g4 {[%clk 0:00:06.2]} 41... Qb1 {[%clk
0:00:27.5]} 42. Kxh3 {[%clk 0:00:06.4]} 42... Rd3 {[%clk 0:00:27.4]} 0-1

[Event "*** SCC Grand Prix: Titled Tuesday Blitz"]
[Site "Chess.com"]
[Date "2020.07.14"]
[Round "8"]
[White "Mikasinski"]
[Black "Sychev_Klementy"]
[Result "0-1"]
[WhiteElo "2491"]
[BlackElo "2726"]
[TimeControl "180+1"]
[EndTime "11:36:50 PDT"]
[Termination "Sychev_Klementy won by checkmate"]

1. e4 {[%clk 0:03:00.9]} 1... e5 {[%clk 0:02:59.9]} 2. Nf3 {[%clk 0:03:00.9]}
2... Nc6 {[%clk 0:03:00.5]} 3. Nc3 {[%clk 0:03:01.1]} 3... Nf6 {[%clk
0:02:59.9]} 4. Bb5 {[%clk 0:03:01.6]} 4... Nd4 {[%clk 0:02:59.3]} 5. Nxd4 {[%clk
0:03:01]} 5... exd4 {[%clk 0:02:59.5]} 6. e5 {[%clk 0:03:01.9]} 6... dxc3 {[%clk
0:02:59.7]} 7. exf6 {[%clk 0:03:02.5]} 7... Qxf6 {[%clk 0:02:59.8]} 8. dxc3
{[%clk 0:03:03]} 8... Bc5 {[%clk 0:02:58.1]} 9. O-O {[%clk 0:03:01.3]} 9... O-O
{[%clk 0:02:56.6]} 10. Bd3 {[%clk 0:03:01.9]} 10... d6 {[%clk 0:02:43.9]} 11.
Qh5 {[%clk 0:02:58.2]} 11... h6 {[%clk 0:02:33.4]} 12. Bd2 {[%clk 0:02:51.4]}
12... Bd7 {[%clk 0:02:28.2]} 13. Rae1 {[%clk 0:02:49.9]} 13... Rae8 {[%clk
0:02:28]} 14. Be3 {[%clk 0:02:33.7]} 14... Re5 {[%clk 0:02:11.1]} 15. Qd1 {[%clk
0:02:30.9]} 15... Bxe3 {[%clk 0:02:09.7]} 16. fxe3 {[%clk 0:02:28.9]} 16... Qg5
{[%clk 0:02:07.9]} 17. Qd2 {[%clk 0:02:18.5]} 17... Bc6 {[%clk 0:02:00.2]} 18.
Qf2 {[%clk 0:02:18]} 18... g6 {[%clk 0:01:14.3]} 19. e4 {[%clk 0:02:09.8]} 19...
Kg7 {[%clk 0:01:12.5]} 20. h4 {[%clk 0:02:04.9]} 20... Qe7 {[%clk 0:01:11.3]}
21. g3 {[%clk 0:02:03.1]} 21... a5 {[%clk 0:01:04]} 22. b4 {[%clk 0:01:56.9]}
22... Bxe4 {[%clk 0:00:49.3]} 23. Bxe4 {[%clk 0:01:34.3]} 23... Rxe4 {[%clk
0:00:49.1]} 24. bxa5 {[%clk 0:01:24.4]} 24... Qe5 {[%clk 0:00:42]} 25. Kh2
{[%clk 0:01:13.9]} 25... Rxe1 {[%clk 0:00:39.6]} 26. Rxe1 {[%clk 0:01:13.8]}
26... Qxc3 {[%clk 0:00:35.9]} 27. Re7 {[%clk 0:01:10.8]} 27... Qxa5 {[%clk
0:00:33.8]} 28. Qd4+ {[%clk 0:01:10.9]} 28... Kg8 {[%clk 0:00:32.5]} 29. Qf4
{[%clk 0:01:04]} 29... h5 {[%clk 0:00:31]} 30. a4 {[%clk 0:00:47.3]} 30... Qc3
{[%clk 0:00:27.5]} 31. Qe4 {[%clk 0:00:40.4]} 31... Qd2+ {[%clk 0:00:27]} 32.
Kh3 {[%clk 0:00:39.3]} 32... Qc3 {[%clk 0:00:21.1]} 33. Qxb7 {[%clk 0:00:33.5]}
33... Qxc2 {[%clk 0:00:18.9]} 34. Qxc7 {[%clk 0:00:28.6]} 34... Qd1 {[%clk
0:00:17.6]} 35. Qc6 {[%clk 0:00:18.8]} 35... d5 {[%clk 0:00:16.6]} 36. Kg2
{[%clk 0:00:13.9]} 36... Qd2+ {[%clk 0:00:16.3]} 37. Kf3 {[%clk 0:00:10.7]}
37... d4 {[%clk 0:00:13.7]} 38. Qe4 {[%clk 0:00:09.4]} 38... Qd1+ {[%clk
0:00:12.6]} 39. Kg2 {[%clk 0:00:07]} 39... Rb8 {[%clk 0:00:11.4]} 40. Re8+
{[%clk 0:00:06.7]} 40... Rxe8 {[%clk 0:00:11.2]} 41. Qxe8+ {[%clk 0:00:07.6]}
41... Kg7 {[%clk 0:00:11.6]} 42. Qe5+ {[%clk 0:00:08.1]} 42... Kh7 {[%clk
0:00:11.2]} 43. Qf6 {[%clk 0:00:07.8]} 43... Qc2+ {[%clk 0:00:09.8]} 44. Kf3
{[%clk 0:00:06]} 44... Qb3+ {[%clk 0:00:08.9]} 45. Kf4 {[%clk 0:00:05.8]} 45...
Qe3# {[%clk 0:00:08.3]} 0-1

[Event "*** SCC Grand Prix: Titled Tuesday Blitz"]
[Site "Chess.com"]
[Date "2020.07.14"]
[Round "8"]
[White "Volodar_Murzin"]
[Black "marianokar"]
[Result "1-0"]
[WhiteElo "2713"]
[BlackElo "2440"]
[TimeControl "180+1"]
[EndTime "11:36:51 PDT"]
[Termination "Volodar_Murzin won on time"]

1. e4 {[%clk 0:03:00.9]} 1... e5 {[%clk 0:02:58.7]} 2. Nf3 {[%clk 0:03:01.1]}
2... Nc6 {[%clk 0:02:58]} 3. Bb5 {[%clk 0:03:01.7]} 3... Nf6 {[%clk 0:02:56.9]}
4. Ba4 {[%clk 0:03:02.3]} 4... Nxe4 {[%clk 0:02:55.8]} 5. d4 {[%clk 0:02:52.3]}
5... exd4 {[%clk 0:02:42.2]} 6. O-O {[%clk 0:02:50]} 6... Be7 {[%clk 0:02:40.4]}
7. Re1 {[%clk 0:02:44.9]} 7... d5 {[%clk 0:02:25.7]} 8. c4 {[%clk 0:02:29.1]}
8... Nc5 {[%clk 0:01:29.2]} 9. Bxc6+ {[%clk 0:02:15.7]} 9... bxc6 {[%clk
0:01:28.3]} 10. Nxd4 {[%clk 0:02:16.6]} 10... Bd7 {[%clk 0:01:22.7]} 11. Nc3
{[%clk 0:02:01.9]} 11... dxc4 {[%clk 0:01:11.6]} 12. Qf3 {[%clk 0:01:37.4]}
12... O-O {[%clk 0:01:08]} 13. Nxc6 {[%clk 0:01:33.2]} 13... Bxc6 {[%clk
0:01:07.1]} 14. Qxc6 {[%clk 0:01:34.1]} 14... Nd3 {[%clk 0:01:04.7]} 15. Rd1
{[%clk 0:01:30.9]} 15... Bc5 {[%clk 0:01:00.8]} 16. Ne4 {[%clk 0:00:50.6]} 16...
Qe7 {[%clk 0:00:29.4]} 17. Nxc5 {[%clk 0:00:18.7]} 17... Qxc5 {[%clk 0:00:28.3]}
18. Qxc5 {[%clk 0:00:18.9]} 18... Nxc5 {[%clk 0:00:28.9]} 19. Be3 {[%clk
0:00:19.5]} 19... Nd3 {[%clk 0:00:24.2]} 20. b3 {[%clk 0:00:17.3]} 20... Rfd8
{[%clk 0:00:22.9]} 21. bxc4 {[%clk 0:00:16.4]} 21... a6 {[%clk 0:00:20.7]} 22.
Rab1 {[%clk 0:00:15.7]} 22... Ne5 {[%clk 0:00:19.3]} 23. c5 {[%clk 0:00:13.9]}
23... Nc4 {[%clk 0:00:18.1]} 24. Bf4 {[%clk 0:00:13.9]} 24... Rxd1+ {[%clk
0:00:16]} 25. Rxd1 {[%clk 0:00:13]} 25... c6 {[%clk 0:00:16.9]} 26. h4 {[%clk
0:00:12.8]} 26... f6 {[%clk 0:00:12.4]} 27. Rd7 {[%clk 0:00:12.7]} 27... Re8
{[%clk 0:00:11.1]} 28. Rc7 {[%clk 0:00:12.3]} 28... Re1+ {[%clk 0:00:10.2]} 29.
Kh2 {[%clk 0:00:12.1]} 29... Re2 {[%clk 0:00:11.1]} 30. Kg3 {[%clk 0:00:09.7]}
30... Na5 {[%clk 0:00:09.5]} 31. a4 {[%clk 0:00:06.3]} 31... Ra2 {[%clk
0:00:07.6]} 32. h5 {[%clk 0:00:06.1]} 32... h6 {[%clk 0:00:06.8]} 33. Kg4 {[%clk
0:00:06.3]} 33... Rxa4 {[%clk 0:00:05.7]} 34. Kf5 {[%clk 0:00:06]} 34... Kh7
{[%clk 0:00:05.9]} 35. Bd6 {[%clk 0:00:03.9]} 35... Ra2 {[%clk 0:00:02.6]} 36.
f4 {[%clk 0:00:03.5]} 36... Rd2 {[%clk 0:00:02.2]} 37. g4 {[%clk 0:00:02.8]}
37... Rd5+ {[%clk 0:00:01.3]} 38. Ke6 {[%clk 0:00:03.4]} 1-0

[Event "*** SCC Grand Prix: Titled Tuesday Blitz"]
[Site "Chess.com"]
[Date "2020.07.14"]
[Round "8"]
[White "Zubrrr"]
[Black "ural58"]
[Result "0-1"]
[WhiteElo "2624"]
[BlackElo "2501"]
[TimeControl "180+1"]
[EndTime "11:36:51 PDT"]
[Termination "ural58 won on time"]

1. e4 {[%clk 0:02:58.8]} 1... d5 {[%clk 0:02:57.2]} 2. exd5 {[%clk 0:02:57.2]}
2... Qxd5 {[%clk 0:02:57.2]} 3. Nc3 {[%clk 0:02:57.8]} 3... Qa5 {[%clk 0:02:57]}
4. Nf3 {[%clk 0:02:57.9]} 4... Nf6 {[%clk 0:02:56.8]} 5. Bc4 {[%clk 0:02:57.2]}
5... Nc6 {[%clk 0:02:56.4]} 6. h3 {[%clk 0:02:51.1]} 6... Ne5 {[%clk 0:02:55.2]}
7. Nxe5 {[%clk 0:02:42.1]} 7... Qxe5+ {[%clk 0:02:55]} 8. Be2 {[%clk 0:02:39.2]}
8... c6 {[%clk 0:02:52.6]} 9. d4 {[%clk 0:02:38.8]} 9... Qc7 {[%clk 0:02:52.7]}
10. O-O {[%clk 0:02:39]} 10... Bf5 {[%clk 0:02:50]} 11. Bf3 {[%clk 0:02:25.7]}
11... e6 {[%clk 0:02:49.7]} 12. Bg5 {[%clk 0:02:20.8]} 12... Be7 {[%clk
0:02:49.7]} 13. Qe2 {[%clk 0:02:19]} 13... O-O {[%clk 0:02:47.7]} 14. Rad1
{[%clk 0:02:18.9]} 14... Rad8 {[%clk 0:02:46.3]} 15. a3 {[%clk 0:02:12.5]} 15...
h6 {[%clk 0:02:44]} 16. Bh4 {[%clk 0:02:11.9]} 16... Bg6 {[%clk 0:02:02]} 17.
Rd2 {[%clk 0:02:02.9]} 17... Rfe8 {[%clk 0:02:01.6]} 18. Rfd1 {[%clk 0:02:01.4]}
18... Nd5 {[%clk 0:02:00.8]} 19. Bxd5 {[%clk 0:01:53.8]} 19... exd5 {[%clk
0:01:54.7]} 20. Bxe7 {[%clk 0:01:53]} 20... Rxe7 {[%clk 0:01:54.2]} 21. Qf1
{[%clk 0:01:42]} 21... Rde8 {[%clk 0:01:48.5]} 22. Ne2 {[%clk 0:01:35.9]} 22...
Bh5 {[%clk 0:01:31.5]} 23. f3 {[%clk 0:01:35.4]} 23... Bg6 {[%clk 0:01:29]} 24.
Qf2 {[%clk 0:01:33.9]} 24... a5 {[%clk 0:01:19.4]} 25. c3 {[%clk 0:01:15.4]}
25... b5 {[%clk 0:01:18.3]} 26. Nc1 {[%clk 0:01:12.6]} 26... Qf4 {[%clk
0:01:08.2]} 27. Re2 {[%clk 0:00:32.8]} 27... Qxc1 {[%clk 0:00:48.8]} 28. Rxc1
{[%clk 0:00:31.9]} 28... Rxe2 {[%clk 0:00:49.1]} 29. Qg3 {[%clk 0:00:31.7]}
29... Rxb2 {[%clk 0:00:48.7]} 30. Re1 {[%clk 0:00:31.4]} 30... Rc8 {[%clk
0:00:32.1]} 31. Qg4 {[%clk 0:00:23.4]} 31... Rd8 {[%clk 0:00:26.6]} 32. Qf4
{[%clk 0:00:19.2]} 32... Rb3 {[%clk 0:00:19]} 33. Qc7 {[%clk 0:00:18.6]} 33...
Rf8 {[%clk 0:00:14]} 34. Qxc6 {[%clk 0:00:10.8]} 34... Bd3 {[%clk 0:00:11.9]}
35. Qxd5 {[%clk 0:00:09.9]} 35... Rxa3 {[%clk 0:00:12.2]} 36. Qc5 {[%clk
0:00:09.9]} 36... Ra2 {[%clk 0:00:10.1]} 37. d5 {[%clk 0:00:09.8]} 37... Bc4
{[%clk 0:00:09.7]} 38. d6 {[%clk 0:00:09.8]} 38... Rd2 {[%clk 0:00:10]} 39. Qc6
{[%clk 0:00:05.9]} 39... a4 {[%clk 0:00:10.1]} 40. d7 {[%clk 0:00:04.1]} 40...
Be6 {[%clk 0:00:10.4]} 41. Rxe6 {[%clk 0:00:03.3]} 41... fxe6 {[%clk 0:00:10.6]}
42. Qxe6+ {[%clk 0:00:03.9]} 42... Kh8 {[%clk 0:00:11.2]} 43. Qb6 {[%clk
0:00:01.2]} 43... a3 {[%clk 0:00:09.7]} 44. Qxb5 {[%clk 0:00:01.1]} 44... a2
{[%clk 0:00:09.9]} 0-1